bitfinex-derivatives/quotes_SOLF0:USTF0_20260210
["timestamp","ask_amount","ask_price","bid_price","bid_amount"]
[1770706662849,78.45754344,84.53,84.453,73.33773507]
[1770706663049,78.45754344,84.512,84.453,84.00213507]
[1770706664055,78.45754344,84.51,84.453,84.00213507]
[1770706664255,78.45754344,84.51,84.463,84.00083507]
[1770706664650,78.45754344,84.524,84.463,73.33773507]
[1770706665858,78.45754344,84.524,84.474,10.6618]
[1770706666157,78.45754344,84.524,84.474,83.99953507]
[1770706667262,10.6546,84.532,84.474,83.99953507]
[1770706667560,8.3617004,84.531,84.474,83.99953507]
[1770706667856,89.11234344,84.53,84.474,83.99953507]
[1770706668053,86.81858754,84.529,84.474,83.99953507]
[1770706668249,8.3610441,84.528,84.474,83.99953507]
[1770706668454,78.45754344,84.524,84.474,73.33773507]
[1770706668656,78.45754344,84.522,84.474,73.33773507]
[1770706669058,78.45754344,84.522,84.475,10.6616]
[1770706669561,78.45754344,84.522,84.476,73.33773507]
[1770706670764,78.45754344,84.522,84.484,10.6604]
[1770706671163,71.80170587,84.54,84.484,72.41978276]
[1770706671359,80.16318115,84.539,84.484,72.41978276]
[1770706671564,71.80170587,84.539,84.484,72.41978276]
[1770706673471,71.80170587,84.539,84.503,10.6581]
[1770706673966,107.0,84.546,84.503,83.07788276]
[1770706674166,9.610635,84.55,84.513,10.6568]
[1770706675572,71.80170587,84.554,84.503,72.41978276]
[1770706675873,35.55,84.59,84.471,72.41978276]
[1770706675874,71.80170587,84.549,84.471,72.41978276]
[1770706676166,71.80170587,84.547,84.471,72.41978276]
[1770706676367,71.80170587,84.545,84.49,72.41978276]
[1770706676566,71.80170587,84.543,84.49,72.41978276]
[1770706676761,71.80170587,84.539,84.496,10.6589]
[1770706676967,71.80170587,84.537,84.476,72.41978276]
[1770706677273,71.80170587,84.535,84.476,72.41978276]
[1770706677470,71.80170587,84.533,84.476,72.41978276]
[1770706677669,71.80170587,84.531,84.488,10.66]
[1770706679471,71.80170587,84.527,84.488,10.66]
[1770706679676,71.80170587,84.527,84.48,10.661]
[1770706680173,71.80170587,84.527,84.487,10.6601]
[1770706680365,9.610635,84.54,84.476,72.41978276]
[1770706680662,71.80170587,84.541,84.495,72.41978276]
[1770706680865,3.58526025,84.54,84.495,72.41978276]
[1770706681165,3.58526025,84.55,84.501,72.41978276]
[1770706681873,3.58526025,84.54,84.501,83.07808276]
[1770706682067,3.58526025,84.54,84.501,72.41978276]
[1770706682372,3.58526025,84.55,84.508,10.6575]
[1770706682571,75.38696612,84.55,84.508,10.6575]
[1770706682772,3.58526025,84.53,84.486,72.41978276]
[1770706683269,3.58526025,84.53,84.5,10.6585]
[1770706684669,71.80170587,84.54,84.5,10.6585]
[1770706684873,75.38696612,84.54,84.5,10.6585]
[1770706685274,3.58526025,84.54,84.506,10.6576]
[1770706685667,3.58526025,84.55,84.506,83.07738276]
[1770706686274,71.80170587,84.555,84.506,83.07738276]
[1770706686577,3.58526025,84.55,84.506,83.07738276]
[1770706686968,3.58526025,84.54,84.496,10.6589]
[1770706687678,3.58526025,84.54,84.499,10.6585]
[1770706688674,71.80170587,84.55,84.508,10.6574]
[1770706688877,75.38696612,84.55,84.508,83.07718276]
[1770706689981,107.0,84.563,84.508,83.07718276]
[1770706690278,107.0,84.563,84.5,3.58526025]
[1770706690279,3.58526025,84.56,84.518,72.41978276]
[1770706690480,71.80170587,84.569,84.518,72.41978276]
[1770706690481,3.58526025,84.55,84.518,72.41978276]
[1770706690673,3.58526025,84.56,84.518,72.41978276]
[1770706691080,71.80170587,84.569,84.518,72.41978276]
[1770706691682,71.80170587,84.569,84.521,10.6558]
[1770706691874,71.80170587,84.569,84.522,72.41978276]
[1770706692274,3.58526025,84.57,84.522,72.41978276]
[1770706692470,3.58526025,84.56,84.522,72.41978276]
[1770706692671,3.58526025,84.56,84.523,83.07538276]
[1770706692871,71.80170587,84.578,84.523,72.41978276]
[1770706694582,71.80170587,84.59,84.528,72.41978276]
[1770706695782,71.80170587,84.59,84.534,83.07398276]
[1770706695984,71.80170587,84.59,84.534,72.41978276]
[1770706696184,8.28891576,84.592,84.534,72.41978276]
[1770706696185,71.80170587,84.588,84.541,10.6533]
[1770706698587,71.80170587,84.586,84.534,72.41978276]
[1770706699785,77.25479192,84.583,84.536,10.6539]
[1770706700495,77.25479192,84.578,84.519,72.29156689]
[1770706700789,77.25479192,84.578,84.506,72.29156689]
[1770706701290,86.85122416,84.56,84.506,72.29156689]
[1770706701688,77.25479192,84.56,84.506,72.29156689]
[1770706701886,77.25479192,84.56,84.515,85.0858612]
[1770706702193,9.59643224,84.57,84.515,74.4292612]
[1770706702586,10.6496,84.571,84.515,74.4292612]
[1770706703388,73.24031149,84.568,84.515,74.4292612]
[1770706703888,73.24031149,84.559,84.515,74.4292612]
[1770706704684,73.24031149,84.559,84.5,74.4292612]
[1770706705791,73.24031149,84.557,84.504,10.658]
[1770706705992,73.24031149,84.557,84.504,85.0872612]
[1770706706396,9.59643224,84.57,84.504,74.4292612]
[1770706706397,73.24031149,84.548,84.504,74.4292612]
[1770706706595,73.24031149,84.548,84.461,74.4292612]
[1770706706999,73.24031149,84.546,84.492,74.4292612]
[1770706708299,10.6534,84.541,84.495,74.4292612]
[1770706709798,73.24031149,84.546,84.498,74.4292612]
[1770706710701,73.24031149,84.546,84.499,10.6586]
[1770706710899,73.24031149,84.546,84.499,74.4292612]
[1770706711899,73.24031149,84.546,84.505,10.6578]
[1770706714890,3.58540798,84.54,84.505,10.6578]
[1770706715997,76.82571947,84.54,84.505,10.6578]
[1770706716398,3.58540798,84.53,84.484,74.4292612]
[1770706717691,3.58540798,84.53,84.495,10.659]
[1770706717887,3.58540798,84.53,84.495,85.0882612]
[1770706718099,76.82571947,84.54,84.495,74.4292612]
[1770706719402,3.58540798,84.55,84.515,10.6565]
[1770706719597,3.58540798,84.55,84.507,74.4292612]
[1770706719800,76.82571947,84.54,84.491,74.4292612]
[1770706720796,76.82571947,84.54,84.499,10.6586]
[1770706720995,76.82559873,84.54,84.499,10.6586]
[1770706721907,76.82559873,84.54,84.505,10.6578]
[1770706724301,3.58528724,84.53,84.505,10.6578]
[1770706724703,3.58528724,84.53,84.486,74.4292612]
[1770706724704,76.82559873,84.53,84.486,74.4292612]
[1770706724898,76.82559873,84.53,84.47,3.58528724]
[1770706724899,3.58528724,84.52,84.471,74.4292612]
[1770706725604,3.58528724,84.52,84.493,10.6593]
[1770706728004,76.82559873,84.52,84.482,10.6607]
[1770706728609,3.58528724,84.51,84.482,10.6607]
[1770706729803,3.58528724,84.5,84.464,10.663]
[1770706730013,3.58528724,84.49,84.457,77.99577685]
[1770706730207,3.58528724,84.49,84.459,10.6637]
[1770706730811,3.58528724,84.5,84.457,77.99577685]
[1770706731708,3.58835101,84.5,84.466,10.6628]
[1770706731908,76.47573687,84.527,84.471,77.99577685]
[1770706732208,3.58835101,84.52,84.471,77.99577685]
[1770706734006,76.47573687,84.527,84.492,10.6595]
[1770706734409,3.58835101,84.52,84.492,10.6595]
[1770706737814,3.58835101,84.52,84.484,88.65617685]
[1770706738810,80.06408788,84.52,84.477,10.6614]
[1770706739313,3.58835101,84.52,84.478,77.99577685]
[1770706740718,3.58835101,84.53,84.49,10.6597]
[1770706741011,3.58835101,84.52,84.476,77.99577685]
[1770706741209,76.47573687,84.519,84.476,77.99577685]
[1770706741805,76.47573687,84.519,84.483,10.6606]
[1770706742616,76.47573687,84.519,84.476,77.99577685]
[1770706742617,3.58835101,84.51,84.476,77.99577685]
[1770706743105,3.58835101,84.51,84.477,10.6614]
[1770706743702,3.58835101,84.51,84.483,10.6606]
[1770706744303,3.58835101,84.51,84.439,21.3324]
[1770706744304,3.58835101,84.53,84.49,88.65547685]
[1770706744507,3.58835101,84.52,84.477,77.99577685]
[1770706745017,3.58835101,84.51,84.483,10.6606]
[1770706745211,76.47573687,84.519,84.483,10.6606]
[1770706745812,3.58835101,84.53,84.489,88.65557685]
[1770706747920,3.58835101,84.53,84.489,77.99577685]
[1770706750216,87.22645019,84.559,84.489,77.99577685]
[1770706750424,8.31823983,84.558,84.511,77.99577685]
[1770706750622,3.58835101,84.56,84.511,77.99577685]
[1770706751128,8.31774056,84.559,84.511,77.99577685]
[1770706751435,3.58835101,84.56,84.511,77.99577685]
[1770706751735,3.58835101,84.56,84.514,77.99577685]
[1770706752325,8.31773991,84.563,84.514,77.99577685]
[1770706752630,80.06408788,84.56,84.514,77.99577685]
[1770706752824,3.58835101,84.54,84.501,77.99577685]
[1770706753731,3.58835101,84.54,84.501,88.65417685]
[1770706754531,76.47573687,84.55,84.501,88.65417685]
[1770706754733,3.58835101,84.54,84.501,88.65417685]
[1770706755228,10.6526,84.547,84.501,88.65417685]
[1770706755433,3.58835101,84.54,84.501,88.65417685]
[1770706756631,3.58835101,84.52,84.484,77.99577685]
[1770706757529,3.58835101,84.53,84.484,77.99577685]
[1770706757835,3.58835101,84.53,84.486,77.99577685]
[1770706758029,3.58835101,84.53,84.48,3.58835101]
[1770706758030,3.58835101,84.54,84.491,77.99577685]
[1770706758432,3.58835101,84.56,84.511,77.99577685]
[1770706759128,3.58835101,84.56,84.516,77.99577685]
[1770706760030,77.8825525,84.56,84.516,77.99577685]
[1770706760236,3.58835101,84.55,84.48,72.83153114]
[1770706760433,74.29420149,84.549,84.491,72.83153114]
[1770706761237,84.94660149,84.549,84.506,10.6577]
[1770706761436,3.58835101,84.54,84.506,10.6577]
[1770706761637,77.6398423,84.559,84.511,73.55293457]
[1770706761835,3.58835101,84.55,84.511,73.55293457]
[1770706762728,3.58835101,84.55,84.512,10.657]
[1770706763133,77.6398423,84.559,84.513,73.55293457]
[1770706763439,3.58835101,84.55,84.515,84.20953457]
[1770706764239,81.22819331,84.56,84.501,73.55293457]
[1770706764938,81.22819331,84.56,84.523,10.6556]
[1770706765436,81.22819331,84.57,84.524,73.55293457]
[1770706765631,107.0,84.569,84.524,73.55293457]
[1770706765828,10.75071332,84.608,84.479,21.3223]
[1770706765829,3.58835101,84.56,84.511,73.55293457]
[1770706766035,77.6398423,84.559,84.511,73.55293457]
[1770706766436,10.6513,84.558,84.511,73.55293457]
[1770706766640,3.58835101,84.55,84.511,73.55293457]
[1770706767636,35.55,84.588,84.489,73.55293457]
[1770706767637,3.58835101,84.53,84.489,73.55293457]
[1770706767838,3.58835101,84.5,84.461,73.55293457]
[1770706769641,14.24445101,84.52,84.464,73.55293457]
[1770706770238,77.6398423,84.526,84.483,73.55293457]
[1770706771739,77.6398423,84.526,84.484,10.6605]
[1770706772134,3.58835101,84.52,84.484,10.6605]
[1770706772841,3.58835101,84.52,84.474,10.6617]
[1770706773432,3.58835101,84.52,84.48,10.6609]
[1770706775238,3.58835101,84.52,84.48,73.55293457]
[1770706775545,3.58835101,84.52,84.487,73.55293457]
[1770706776439,3.58835101,84.52,84.47,3.58835101]
[1770706776641,3.58835101,84.52,84.471,73.55293457]
[1770706776846,3.58835101,84.52,84.475,10.6616]
[1770706777037,3.58835101,84.52,84.475,84.21453457]
[1770706777740,77.6398423,84.526,84.475,84.21453457]
[1770706777942,3.58835101,84.52,84.484,10.6605]
[1770706778748,77.6398423,84.526,84.484,84.21343457]
[1770706779047,10.6536,84.539,84.492,73.55293457]
[1770706780744,10.6536,84.539,84.494,73.55293457]
[1770706781044,10.6526,84.548,84.494,73.55293457]
[1770706781552,3.58835101,84.54,84.494,73.55293457]
[1770706782847,3.585083,84.54,84.501,10.6583]
[1770706784346,3.585083,84.54,84.501,84.21123457]
[1770706785651,107.0,84.557,84.508,73.55293457]
[1770706785856,110.585083,84.56,84.511,73.55293457]
[1770706786756,110.585083,84.56,84.521,10.6558]
[1770706787756,110.585083,84.56,84.521,84.20873457]
[1770706788347,110.585083,84.56,84.527,10.655]
[1770706789748,3.585083,84.56,84.527,10.655]
[1770706789950,3.585083,84.56,84.521,73.55293457]
[1770706790253,72.57348649,84.56,84.521,73.55293457]
[1770706790457,76.15856949,84.56,84.521,73.55293457]
[1770706791552,3.585083,84.56,84.521,73.55293457]
[1770706791758,3.585083,84.58,84.521,73.55293457]
[1770706792159,72.57348649,84.587,84.531,76.50761969]
[1770706792858,3.585083,84.58,84.539,87.16111969]
[1770706793246,72.57348649,84.587,84.549,10.6523]
[1770706795953,72.57348649,84.587,84.549,87.15991969]
[1770706796358,72.57348649,84.587,84.555,10.6515]
[1770706798556,72.57348649,84.587,84.549,76.50761969]
[1770706799859,3.585083,84.58,84.549,76.50761969]
[1770706800059,72.57348649,84.587,84.549,76.50761969]
[1770706800859,72.57348649,84.587,84.55,87.15971969]
[1770706801659,3.585083,84.59,84.55,87.15971969]
[1770706801967,10.6468,84.594,84.55,87.15971969]
[1770706802266,10.645,84.608,84.562,87.15831969]
[1770706802567,3.585083,84.61,84.562,76.50761969]
[1770706802762,3.585083,84.61,84.575,10.6489]
[1770706803266,3.585083,84.6,84.562,76.50761969]
[1770706803661,3.585083,84.59,84.541,76.50761969]
[1770706803857,3.585083,84.58,84.541,76.50761969]
[1770706804463,3.585083,84.57,84.527,76.50761969]
[1770706805560,3.585083,84.58,84.539,87.16221969]
[1770706806267,72.57348649,84.576,84.524,76.50761969]
[1770706806466,3.585083,84.57,84.524,76.50761969]
[1770706806670,35.55,84.607,84.474,21.3257]
[1770706806671,3.585083,84.58,84.531,76.50761969]
[1770706806872,3.585083,84.58,84.472,165.8704]
[1770706806873,3.585083,84.6,84.551,76.50761969]
[1770706808463,3.585083,84.59,84.551,76.50761969]
[1770706808871,3.585083,84.58,84.551,76.50761969]
[1770706809063,76.15856949,84.58,84.537,76.50761969]
[1770706809265,3.585083,84.56,84.523,76.50761969]
[1770706809663,3.585083,84.58,84.531,76.50761969]
[1770706810570,3.585083,84.58,84.53,3.585083]
[1770706810571,72.57348649,84.6,84.55,10.6533]
[1770706810875,3.585083,84.59,84.55,10.6533]
[1770706811372,3.585083,84.59,84.55,87.16091969]
[1770706812772,72.57348649,84.616,84.561,76.50761969]
[1770706812971,3.585083,84.61,84.561,76.50761969]
[1770706813769,3.585083,84.61,84.562,10.6516]
[1770706813967,3.585083,84.59,84.541,76.50761969]
[1770706814380,3.585083,84.59,84.551,10.6531]
[1770706814678,72.57348649,84.596,84.551,10.6531]
[1770706814881,3.585083,84.59,84.551,10.6531]
[1770706815077,3.585083,84.58,84.541,76.50761969]
[1770706815378,21.2881,84.624,84.527,76.50761969]
[1770706815379,3.585083,84.57,84.527,76.50761969]
[1770706815578,3.585083,84.57,84.461,21.97412136]
[1770706815579,3.585083,84.56,84.512,76.50761969]
[1770706815974,76.15856949,84.57,84.512,76.50761969]
[1770706816175,3.585083,84.57,84.521,76.50761969]
[1770706816372,72.57348649,84.584,84.531,76.50761969]
[1770706816680,10.6497,84.579,84.531,76.50761969]
[1770706817274,3.585083,84.57,84.527,10.6561]
[1770706817481,76.15856949,84.57,84.527,10.6561]
[1770706817676,72.57348649,84.586,84.527,76.50761969]
[1770706817872,3.585083,84.58,84.531,76.50761969]
[1770706818676,3.585083,84.58,84.542,10.6543]
[1770706819573,3.585083,84.57,84.533,10.6554]
[1770706820877,72.57348649,84.586,84.541,72.6129946]
[1770706821083,3.585083,84.58,84.541,72.6129946]
[1770706821472,3.585083,84.58,84.545,70.54869425]
[1770706821673,3.585083,84.59,84.545,70.54869425]
[1770706822670,3.585083,84.59,84.555,10.6526]
[1770706822870,72.25724061,84.602,84.555,10.6526]
[1770706823070,10.6452,84.615,84.556,70.54869425]
[1770706823277,9.5904995,84.62,84.556,70.54869425]
[1770706823278,72.25724061,84.614,84.556,70.54869425]
[1770706823981,72.25724061,84.611,84.563,10.6516]
[1770706824680,10.646,84.608,84.563,10.6516]
[1770706825780,10.6469,84.601,84.556,70.54869425]
[1770706826376,10.6469,84.601,84.557,10.6523]
[1770706826686,8.29398546,84.607,84.557,70.54869425]
[1770706826880,72.25724061,84.608,84.557,70.54869425]
[1770706827188,72.25724061,84.622,84.564,70.54869425]
[1770706827374,8.29854595,84.626,84.564,70.54869425]
[1770706827579,72.25724061,84.635,84.564,70.54869425]
[1770706827880,9.5904995,84.64,84.564,70.54869425]
[1770706827881,72.25724061,84.633,84.564,70.54869425]
[1770706828081,10.644,84.624,84.579,10.6495]
[1770706828279,10.644,84.624,84.564,70.54869425]
[1770706828476,72.25724061,84.628,84.564,70.54869425]
[1770706828685,10.6459,84.609,84.564,70.54869425]
[1770706829382,72.25724061,84.598,84.549,70.54869425]
[1770706829688,72.25724061,84.613,84.549,70.54869425]
[1770706829984,72.25724061,84.611,84.549,70.54869425]
[1770706830186,8.30070785,84.61,84.549,70.54869425]
[1770706830380,8.30070785,84.61,84.53,9.5904995]
[1770706830381,8.30070785,84.61,84.559,70.54869425]
[1770706830587,72.25724061,84.611,84.559,70.54869425]
[1770706830989,8.3068036,84.61,84.559,70.54869425]
[1770706831487,8.30655322,84.609,84.559,70.54869425]
[1770706831687,8.30702715,84.61,84.564,10.6514]
[1770706831882,72.25724061,84.611,84.559,70.54869425]
[1770706832285,72.25724061,84.611,84.571,10.6506]
[1770706832679,72.25724061,84.611,84.514,21.3155]
[1770706832680,72.25724061,84.609,84.539,70.54869425]
[1770706832884,72.25724061,84.605,84.556,10.6525]
[1770706833087,72.25724061,84.603,84.557,70.54869425]
[1770706833688,72.25724061,84.617,84.568,10.6519]
[1770706833884,8.30984892,84.616,84.568,10.6519]
[1770706834082,8.30984892,84.615,84.568,10.6519]
[1770706834282,8.30984892,84.614,84.568,10.6519]
[1770706834583,8.30984892,84.613,84.568,10.6519]
[1770706834788,72.25724061,84.617,84.568,10.6519]
[1770706834789,8.30984892,84.612,84.568,10.6519]
[1770706834982,8.30984892,84.611,84.568,10.6519]
[1770706835178,8.30984892,84.61,84.568,10.6519]
[1770706835386,8.30984892,84.609,84.568,10.6519]
[1770706835585,8.30984892,84.608,84.568,10.6519]
[1770706835789,8.30984892,84.607,84.568,10.6519]
[1770706835989,8.30984892,84.606,84.568,10.6519]
[1770706836188,8.30984892,84.605,84.568,10.6519]
[1770706836390,8.30984892,84.604,84.568,10.6519]
[1770706836584,8.30984892,84.603,84.568,10.6519]
[1770706836791,80.56708953,84.602,84.543,70.54869425]
[1770706836979,72.25724061,84.6,84.543,70.54869425]
[1770706837182,72.25724061,84.598,84.543,70.54869425]
[1770706837386,72.25724061,84.596,84.543,70.54869425]
[1770706837584,72.25724061,84.594,84.543,70.54869425]
[1770706837883,80.56708953,84.593,84.545,10.6548]
[1770706838078,8.30984892,84.592,84.545,10.6548]
[1770706838284,8.30984892,84.591,84.545,10.6548]
[1770706838486,8.30984892,84.59,84.545,10.6548]
[1770706838687,8.30984892,84.589,84.545,10.6548]
[1770706838990,8.30984892,84.588,84.545,10.6548]
[1770706839189,72.25724061,84.593,84.551,10.654]
[1770706839493,10.6473,84.606,84.551,70.54869425]
[1770706839689,72.25724061,84.607,84.551,70.54869425]
[1770706839690,8.32501367,84.605,84.551,70.54869425]
[1770706839883,8.32501367,84.604,84.551,70.54869425]
[1770706840083,8.32501367,84.603,84.551,70.54869425]
[1770706840282,83.00795393,84.622,84.551,70.54869425]
[1770706840594,8.32561045,84.621,84.551,70.54869425]
[1770706840787,9.5904995,84.63,84.551,70.54869425]
[1770706840788,72.25724061,84.619,84.551,70.54869425]
[1770706840994,72.25724061,84.617,84.551,70.54869425]
[1770706841187,72.25724061,84.615,84.551,70.54869425]
[1770706841382,8.32561045,84.614,84.551,70.54869425]
[1770706841588,8.32561045,84.613,84.577,10.6507]
[1770706841796,72.25724061,84.615,84.577,10.6507]
[1770706842091,72.25724061,84.615,84.568,70.54869425]
[1770706842092,8.32899281,84.62,84.578,70.54869425]
[1770706842292,10.6445,84.628,84.583,81.19879425]
[1770706842484,8.32870432,84.627,84.583,70.54869425]
[1770706842681,8.32870432,84.626,84.583,70.54869425]
[1770706842886,3.57823589,84.62,84.584,10.6499]
[1770706843086,8.32870432,84.625,84.584,10.6499]
[1770706843087,107.0,84.629,84.584,10.6499]
[1770706843389,8.3287167,84.628,84.583,70.54869425]
[1770706843594,3.57823589,84.62,84.583,70.54869425]
[1770706844388,3.57823589,84.62,84.583,81.19879425]
[1770706844902,3.57766921,84.63,84.583,81.19879425]
[1770706845090,8.32507089,84.629,84.583,81.19879425]
[1770706845296,8.32507089,84.628,84.59,10.6492]
[1770706845494,8.32507089,84.629,84.59,10.6492]
[1770706845690,8.32507089,84.628,84.59,10.6492]
[1770706845889,8.32507089,84.629,84.59,10.6492]
[1770706846097,3.57766921,84.63,84.59,10.6492]
[1770706846998,8.32557646,84.629,84.59,10.6492]
[1770706847187,3.57766921,84.63,84.59,10.6492]
[1770706847997,8.32557646,84.634,84.597,10.649]
[1770706848193,8.32557646,84.633,84.59,70.54869425]
[1770706848393,8.32557646,84.632,84.59,70.54869425]
[1770706848600,3.57766921,84.63,84.59,70.54869425]
[1770706852204,3.57766921,84.63,84.592,10.6496]
[1770706852412,8.32557646,84.633,84.592,10.6496]
[1770706852805,8.32557646,84.633,84.604,10.6481]
[1770706853109,107.0,84.634,84.604,10.6481]
[1770706853309,107.0,84.634,84.604,71.98907643]
[1770706853498,76.05026344,84.666,84.614,71.98907643]
[1770706853812,3.57766921,84.64,84.591,71.98907643]
[1770706854211,3.57766921,84.64,84.609,10.6474]
[1770706854517,3.57766921,84.64,84.591,71.98907643]
[1770706854706,76.05026344,84.649,84.608,10.6476]
[1770706855016,3.57766921,84.66,84.604,71.98907643]
[1770706855209,8.32428997,84.663,84.623,10.6457]
[1770706855409,3.57766921,84.66,84.623,10.6457]
[1770706856712,76.05026344,84.659,84.541,71.98907643]
[1770706856913,10.75071332,84.682,84.541,71.98907643]
[1770706856914,76.05026344,84.609,84.541,71.98907643]
[1770706857119,76.05026344,84.609,84.551,71.98907643]
[1770706858011,14.22386921,84.62,84.561,71.98907643]
[1770706858212,3.57766921,84.62,84.561,71.98907643]
[1770706859008,76.05026344,84.625,84.578,10.6513]
[1770706859616,76.05026344,84.625,84.564,10.6531]
[1770706859813,76.05026344,84.617,84.565,71.98907643]
[1770706861313,76.05026344,84.617,84.53,9.58632076]
[1770706861314,76.05026344,84.617,84.567,71.98907643]
[1770706861709,76.05026344,84.638,84.567,71.98907643]
[1770706861908,76.05026344,84.636,84.58,71.98907643]
[1770706862317,76.05026344,84.654,84.58,71.98907643]
[1770706862711,76.05026344,84.654,84.608,10.6476]
[1770706862917,76.05026344,84.654,84.608,71.98907643]
[1770706863216,76.05026344,84.672,84.608,71.98907643]
[1770706863612,76.05026344,84.67,84.608,71.98907643]
[1770706864118,76.05026344,84.668,84.608,71.98907643]
[1770706864317,76.05026344,84.666,84.608,71.98907643]
[1770706864519,84.36472939,84.666,84.608,71.98907643]
[1770706864706,10.642,84.653,84.608,71.98907643]
[1770706864911,86.69226344,84.653,84.608,71.98907643]
[1770706865216,86.69226344,84.653,84.605,10.6479]
[1770706865617,76.05026344,84.653,84.605,10.6479]
[1770706867819,84.34109494,84.653,84.605,10.6479]
[1770706869917,84.34109494,84.653,84.612,10.6471]
[1770706870119,76.05026344,84.653,84.612,10.6471]
[1770706871213,76.05026344,84.653,84.619,10.6462]
[1770706871419,107.0,84.66,84.619,10.6462]
[1770706873022,10.6388,84.679,84.623,71.98907643]
[1770706873614,10.75071332,84.701,84.61,9.58632076]
[1770706873615,76.05026344,84.702,84.631,71.98907643]
[1770706874211,76.05026344,84.702,84.63,9.58632076]
[1770706874212,8.29782474,84.731,84.664,71.98907643]
[1770706874415,76.05026344,84.733,84.671,71.98907643]
[1770706875319,76.05026344,84.733,84.684,10.6373]
[1770706875727,76.05026344,84.733,84.684,71.98907643]
[1770706876026,76.05026344,84.758,84.684,71.98907643]
[1770706876325,76.05026344,84.774,84.701,71.98907643]
[1770706876522,86.67636344,84.774,84.707,82.62347643]
[1770706876920,76.05026344,84.774,84.707,71.98907643]
[1770706877113,76.05026344,84.761,84.707,71.98907643]
[1770706877721,76.05026344,84.761,84.709,71.98907643]
[1770706878515,76.05026344,84.783,84.717,71.98907643]
[1770706878922,76.05026344,84.783,84.731,10.6314]
[1770706879422,76.05026344,84.783,84.732,71.98907643]
[1770706879726,75.40701606,84.798,84.738,71.98907643]
[1770706881917,75.40701606,84.798,84.742,10.63]
[1770706883726,75.40701606,84.798,84.742,82.43685935]
[1770706888727,75.40701606,84.798,84.73,9.58632076]
[1770706888728,72.09592212,84.813,84.751,82.43575935]
[1770706889123,72.09592212,84.809,84.721,71.80685935]
[1770706889630,72.09592212,84.803,84.749,10.6291]
[1770706891242,2.05279457,84.836,84.749,71.80685935]
[1770706891535,291.0,84.859,84.692,11.92680351]
[1770706891536,72.09592212,84.825,84.767,82.43375935]
[1770706892136,72.09592212,84.803,84.737,71.80685935]
[1770706892330,35.55,84.804,84.737,71.80685935]
[1770706892331,72.09592212,84.801,84.737,71.80685935]
[1770706893439,72.09592212,84.801,84.753,10.6287]
[1770706893640,72.09592212,84.801,84.751,71.80685935]
[1770706894134,10.6241,84.791,84.751,71.80685935]
[1770706894335,72.09592212,84.791,84.735,71.80685935]
[1770706895037,72.09592212,84.791,84.744,10.6298]
[1770706895828,72.09592212,84.807,84.744,82.43665935]
[1770706896031,72.09592212,84.805,84.744,82.43665935]
[1770706896436,72.09592212,84.799,84.726,71.80685935]
[1770706896948,10.6241,84.79,84.726,71.80685935]
[1770706897130,10.6241,84.79,84.71,9.58632076]
[1770706897131,82.72002212,84.79,84.729,71.80685935]
[1770706897438,72.09592212,84.773,84.714,71.80685935]
[1770706898028,81.68224288,84.82,84.726,71.80685935]
[1770706898831,10.6232,84.798,84.748,82.43615935]
[1770706899638,10.6232,84.798,84.748,71.80685935]
[1770706900536,72.09592212,84.806,84.72,9.58632076]
[1770706900537,72.09592212,84.806,84.75,71.80685935]
[1770706901336,72.09592212,84.795,84.734,71.80685935]
[1770706901639,72.09592212,84.795,84.711,71.80685935]
[1770706901840,10.6258,84.777,84.714,71.80685935]
[1770706902133,72.09592212,84.776,84.714,71.80685935]
[1770706902539,72.09592212,84.765,84.714,71.80685935]
[1770706902934,72.09592212,84.765,84.719,10.6329]
[1770706903134,20.21172076,84.78,84.719,82.43975935]
[1770706903340,10.6254,84.78,84.719,82.43975935]
[1770706903840,10.6254,84.78,84.728,71.80685935]
[1770706904442,72.09592212,84.797,84.734,71.80685935]
[1770706904634,72.09592212,84.813,84.734,71.80685935]
[1770706905740,10.6228,84.801,84.745,71.80685935]
[1770706906643,72.09592212,84.813,84.757,10.6282]
[1770706906840,72.09592212,84.813,84.757,71.80685935]
[1770706907248,72.09592212,84.811,84.757,71.80685935]
[1770706907538,72.09592212,84.809,84.741,71.80685935]
[1770706908336,9.54235607,84.81,84.725,71.80685935]
[1770706908337,10.6251,84.782,84.725,71.80685935]
[1770706908541,81.63827819,84.79,84.725,71.80685935]
[1770706910645,10.6266,84.77,84.725,71.80685935]
[1770706911641,10.6257,84.777,84.726,10.6321]
[1770706911839,10.6257,84.777,84.726,82.93903787]
[1770706912041,81.63827819,84.79,84.726,72.30693787]
[1770706912241,71.81148133,84.777,84.726,82.93893787]
[1770706913241,10.6243,84.789,84.739,82.93743787]
[1770706914747,71.81148133,84.793,84.739,72.30693787]
[1770706916446,71.81148133,84.793,84.752,10.6288]
[1770706917646,71.81148133,84.807,84.759,10.628]